bitfinex-derivatives/quotes_ETHF0:USTF0_20241013
["timestamp","ask_amount","ask_price","bid_price","bid_amount"]
[1728851478230,0.79759,2457.4,2457.3,2.54475131]
[1728851479135,0.79759,2457.4,2457.3,3.95941352]
[1728851481659,0.79759,2457.4,2457.3,3.80100482]
[1728851482135,0.79759,2457.4,2457.3,3.95943758]
[1728851482936,0.79759,2457.4,2457.3,3.95960469]
[1728851484534,0.79759,2457.4,2457.3,4.35390469]
[1728851485336,0.79759,2457.4,2457.3,3.28756208]
[1728851485570,0.79759,2457.4,2457.3,3.69457208]
[1728851485743,0.79759,2457.4,2457.3,3.69459708]
[1728851486242,0.79759,2457.4,2457.3,5.42196091]
[1728851486445,0.79759,2457.4,2457.3,5.93096969]
[1728851487347,0.79759,2457.4,2457.3,5.93096983]
[1728851487548,0.79759,2457.4,2457.3,5.931323]
[1728851489651,0.79759,2457.4,2457.3,5.93136782]
[1728851490945,0.79759,2457.4,2457.3,5.93136424]
[1728851492445,0.79759,2457.4,2457.3,5.93191535]
[1728851493153,0.79759,2457.4,2457.3,5.52490535]
[1728851493355,0.79759,2457.4,2457.3,3.68340938]
[1728851493650,0.79759,2457.4,2457.2,1.06720815]
[1728851493651,0.40701,2457.3,2457.2,1.06720815]
[1728851493953,4.4767,2457.3,2457.1,2.38720815]
[1728851494152,0.81992,2457.2,2457.1,2.38720815]
[1728851494354,0.81992,2457.2,2457.1,1.32]
[1728851494546,4.88952,2457.2,2457.1,1.32]
[1728851495145,4.88952,2457.2,2457.1,2.38720815]
[1728851495342,4.88952,2457.2,2457.1,1.32]
[1728851495547,0.40704,2457.1,2457.0,1.06720815]
[1728851495748,4.02684,2457.1,2457.0,1.32]
[1728851495949,8.09644,2457.1,2457.0,1.32]
[1728851497154,0.40706,2457.0,2456.9,1.06747204]
[1728851497454,0.40706,2457.0,2456.9,2.38747204]
[1728851499250,0.40706,2457.0,2456.9,1.32]
[1728851501456,3.61486,2457.0,2456.9,1.32]
[1728851502962,3.2078,2457.0,2456.9,1.72707]
[1728851503258,0.81905,2457.1,2456.9,2.13116]
[1728851503457,0.81905,2457.1,2457.0,1.32]
[1728851503851,0.81905,2457.1,2457.0,1.72706]
[1728851504255,0.412,2457.1,2457.0,1.72706]
[1728851504753,0.412,2457.1,2457.0,2.13036]
[1728851506258,0.40704,2457.2,2457.1,0.40704]
[1728851506461,0.40704,2457.2,2457.1,2.12684]
[1728851506955,3.61482,2457.3,2457.1,2.12684]
[1728851507256,0.40702,2457.3,2457.2,1.32]
[1728851507463,8.33822,2457.6,2457.2,2.12821]
[1728851507759,0.407,2457.4,2457.3,0.40701]
[1728851508546,8.14016,2457.6,2457.4,0.40699]
[1728851508857,8.14016,2457.6,2457.5,0.8095]
[1728851509057,8.14016,2457.6,2457.5,2.1295]
[1728851509458,4.02716,2457.6,2457.5,2.1295]
[1728851517070,0.81936,2457.6,2457.5,2.1295]
[1728851519068,0.81936,2457.6,2457.5,1.7283]
[1728851526068,0.81936,2457.6,2457.5,2.13527]
[1728851526278,0.81936,2457.6,2457.5,1.7283]
[1728851535580,0.40699,2457.4,2457.2,1.87998204]
[1728851535784,0.40699,2457.4,2457.3,2.13561]
[1728851536576,0.40699,2457.4,2457.3,1.7286]
[1728851537582,0.40699,2457.4,2457.3,2.13561]
[1728851538281,0.40699,2457.4,2457.3,1.7286]
[1728851538681,0.40699,2457.4,2457.3,2.79607204]
[1728851538874,0.40699,2457.4,2457.3,1.7286]
[1728851539189,0.40699,2457.4,2457.3,2.13561]
[1728851539479,0.40699,2457.4,2457.3,3.20308204]
[1728851542384,0.40699,2457.4,2457.3,3.20307204]
[1728851542887,0.40699,2457.4,2457.3,4.61505699]
[1728851543495,0.4124,2457.6,2457.3,4.61505699]
[1728851543496,0.40698,2457.5,2457.4,0.40698]
[1728851543697,0.40698,2457.5,2457.4,1.32]
[1728851545397,0.40698,2457.5,2457.4,2.38747204]
[1728851546897,0.40698,2457.5,2457.4,2.79446204]
[1728851547085,0.4124,2457.6,2457.4,2.38747204]
[1728851547285,3.2078,2457.7,2457.6,0.40696]
[1728851547492,3.61474,2457.7,2457.6,1.32]
[1728851547699,3.61474,2457.7,2457.6,2.12296]
[1728851547911,3.2078,2457.7,2457.6,3.19043204]
[1728851548285,3.2078,2457.7,2457.6,3.34867832]
[1728851548496,3.2078,2457.7,2457.6,3.34867227]
[1728851548997,3.2078,2457.7,2457.6,3.19043204]
[1728851549299,3.2078,2457.7,2457.6,3.34869588]
[1728851549503,3.61474,2457.7,2457.6,3.34869588]
[1728851550496,3.61474,2457.7,2457.6,4.76208956]
[1728851551287,3.61474,2457.7,2457.6,4.88932826]
[1728851551492,3.61474,2457.7,2457.6,5.39828191]
[1728851551695,3.61474,2457.7,2457.6,4.48236826]
[1728851551893,3.61474,2457.7,2457.6,3.41489622]
[1728851552099,3.61474,2457.7,2457.6,4.98905412]
[1728851552302,3.61474,2457.7,2457.6,5.52515545]
[1728851553605,0.40694,2457.7,2457.6,5.52515545]
[1728851555113,5.3888,2457.7,2457.5,2.66677553]
[1728851555405,6.16046,2457.6,2457.5,1.06556747]
[1728851555609,6.16046,2457.6,2457.4,1.32]
[1728851555610,5.7535,2457.6,2457.4,2.38556747]
[1728851556008,0.40697,2457.5,2457.4,2.92120806]
[1728851556210,0.40697,2457.5,2457.4,3.52840573]
[1728851556509,0.40697,2457.5,2457.4,2.20840573]
[1728851556710,1.72697,2457.5,2457.4,2.20840573]
[1728851556903,8.46499241,2457.5,2457.4,1.06598593]
[1728851557103,0.40701,2457.3,2457.2,1.06598593]
[1728851557408,0.40702,2457.2,2457.1,2.38598593]
[1728851557605,0.79702,2457.2,2457.1,2.38598593]
[1728851559315,0.79702,2457.2,2457.1,1.32]
[1728851560112,1.59672,2457.2,2457.1,1.32]
[1728851561810,4.80452,2457.2,2457.1,1.32]
[1728851564217,1.59672,2457.2,2457.1,1.32]
[1728851574315,4.80452,2457.2,2457.1,1.32]
[1728851577424,3.2078,2457.2,2457.1,1.72704]
[1728851577732,3.2078,2457.2,2457.1,2.12154]
[1728851578234,3.61482,2457.2,2457.1,2.12154]
[1728851578929,3.61482,2457.2,2457.1,1.7145]
[1728851579337,3.2078,2457.2,2457.1,2.12154]
[1728851580720,3.61482,2457.2,2457.1,1.7145]
[1728851580924,3.61482,2457.2,2457.1,2.12154]
[1728851581726,3.2078,2457.2,2457.1,2.12154]
[1728851582936,3.61482,2457.2,2457.1,2.12154]
[1728851583434,3.2078,2457.2,2457.1,2.12154]
[1728851585334,3.61482,2457.3,2457.1,2.12154]
[1728851585536,3.61482,2457.3,2457.2,1.32]
[1728851589635,3.61482,2457.3,2457.2,1.72702]
[1728851590134,3.61482,2457.3,2457.2,1.32]
[1728851590840,3.2078,2457.3,2457.2,1.72702]
[1728851591938,3.61481,2457.3,2457.2,1.72702]
[1728851593538,3.2078,2457.3,2457.2,1.72702]
[1728851594141,3.61481,2457.3,2457.2,1.72702]
[1728851594334,3.61481,2457.3,2457.2,1.32]
[1728851595543,3.61481,2457.3,2457.2,1.72702]
[1728851595739,3.61481,2457.3,2457.2,1.32]
[1728851597449,3.61481,2457.3,2457.2,2.38598593]
[1728851599343,3.2078,2457.3,2457.2,2.94927192]
[1728851599546,3.2078,2457.3,2457.2,4.35953811]
[1728851599739,3.2078,2457.3,2457.2,9.60063947]
[1728851599938,3.2078,2457.3,2457.2,8.2494873]
[1728851600246,3.2078,2457.3,2457.2,11.40246439]
[1728851600951,3.2078,2457.3,2457.2,7.33286439]
[1728851601146,3.2078,2457.3,2457.2,11.40246439]
[1728851602043,3.2078,2457.3,2457.2,14.22309866]
[1728851602850,3.2078,2457.3,2457.2,9.9921982]
[1728851603155,3.61481,2457.3,2457.2,14.22291371]
[1728851603853,3.61481,2457.3,2457.2,11.4024367]
[1728851604149,3.61481,2457.3,2457.2,11.40251459]
[1728851606253,3.61481,2457.3,2457.2,10.38449284]
[1728851606639,3.61481,2457.3,2457.2,11.40250962]
[1728851607148,3.61481,2457.3,2457.2,10.38449284]
[1728851607348,0.40701,2457.3,2457.2,10.38449284]
[1728851607543,0.40701,2457.3,2457.2,8.24938308]
[1728851607856,0.407,2457.4,2457.3,0.407]
[1728851608055,0.407,2457.4,2457.3,6.35684715]
[1728851612354,4.0025,2457.6,2457.3,5.94973544]
[1728851612557,0.40698,2457.5,2457.4,3.03934603]
[1728851613153,0.40698,2457.5,2457.4,2.63236603]
[1728851613349,0.40698,2457.5,2457.4,1.62941043]
[1728851613665,0.40698,2457.5,2457.4,3.03932107]
[1728851614045,0.40698,2457.5,2457.4,2.94941043]
[1728851614248,0.40698,2457.5,2457.4,3.34061043]
[1728851615058,0.40698,2457.5,2457.4,2.93362043]
[1728851615759,0.40698,2457.5,2457.4,2.77732244]
[1728851615955,0.40698,2457.5,2457.4,2.93354964]
[1728851616149,0.40698,2457.5,2457.4,2.77732244]
[1728851616459,0.40698,2457.5,2457.4,2.93355337]
[1728851616657,0.40698,2457.5,2457.4,2.93355007]
[1728851617957,0.40698,2457.5,2457.4,2.77732244]
[1728851618153,0.40698,2457.5,2457.4,2.38612244]
[1728851618463,0.40698,2457.5,2457.4,2.54235621]
[1728851619460,0.40698,2457.5,2457.4,2.38612244]
[1728851619651,0.40698,2457.5,2457.4,2.54235661]
[1728851620259,0.40698,2457.5,2457.4,2.94934661]
[1728851620759,4.80906,2457.6,2457.5,0.40697]
[1728851620959,4.80906,2457.6,2457.5,1.72697]
[1728851621166,3.6101,2457.6,2457.5,1.72697]
[1728851621361,3.61476,2457.6,2457.5,2.11347]
[1728851621862,3.2078,2457.6,2457.5,5.25456073]
[1728851622064,3.2078,2457.6,2457.5,4.74544727]
[1728851622856,3.2078,2457.6,2457.5,4.33847727]
[1728851623159,3.2078,2457.6,2457.5,4.74544727]
[1728851623354,3.2078,2457.6,2457.5,3.67947868]
[1728851623864,3.2078,2457.6,2457.5,4.74540268]
[1728851624766,3.2078,2457.6,2457.5,4.31567463]
[1728851625067,3.2078,2457.6,2457.5,5.91488739]
[1728851625761,3.2078,2457.6,2457.5,4.31567463]
[1728851625968,3.2078,2457.6,2457.5,5.91488739]
[1728851626161,0.82803,2457.8,2457.5,5.50791739]
[1728851626162,0.4211,2457.8,2457.5,5.50791739]
[1728851626371,0.40695,2457.7,2457.6,1.47270469]
[1728851626667,0.40695,2457.7,2457.6,1.86710469]
[1728851627066,0.40695,2457.7,2457.6,0.80136]
[1728851627667,0.82803,2457.8,2457.6,0.3944]
[1728851627870,0.82803,2457.8,2457.7,1.32]
[1728851643880,0.82803,2457.8,2457.6,3.17154469]
[1728851643881,0.40694,2457.7,2457.6,3.17154469]
[1728851644078,0.40694,2457.7,2457.6,3.32778088]
[1728851644678,0.40694,2457.7,2457.6,3.32779639]
[1728851645484,0.40694,2457.7,2457.6,5.37433197]
[1728851645876,0.40694,2457.7,2457.6,4.86536895]
[1728851646074,0.40694,2457.7,2457.6,5.37433269]
[1728851648490,0.40694,2457.7,2457.6,4.73817498]
[1728851648779,0.40694,2457.7,2457.6,3.96404929]
[1728851648982,0.40694,2457.7,2457.6,3.32784423]
[1728851649180,0.40694,2457.7,2457.6,4.73881279]
[1728851649379,0.40694,2457.7,2457.6,3.32789025]
[1728851649981,0.40694,2457.7,2457.6,4.7388303]
[1728851650581,0.40694,2457.7,2457.6,3.32789025]
[1728851650883,0.40694,2457.7,2457.6,4.73886718]
[1728851651293,0.40694,2457.7,2457.6,5.37507128]
[1728851651693,0.40694,2457.7,2457.6,4.73886718]
[1728851652298,0.40694,2457.7,2457.6,5.37507586]
[1728851652489,0.40694,2457.7,2457.6,4.86610872]
[1728851653890,0.40694,2457.7,2457.6,5.09148505]
[1728851654191,0.40694,2457.7,2457.6,5.09189674]
[1728851654395,0.40694,2457.7,2457.6,3.38049674]
[1728851654592,6.19584,2457.7,2457.6,0.50896343]
[1728851654796,12.19584,2457.7,2457.6,0.50896343]
[1728851656185,12.19584,2457.7,2457.6,1.01792733]
[1728851656395,12.19584,2457.7,2457.3,2.80804469]
[1728851656396,0.40699,2457.4,2457.3,2.80804469]
[1728851656591,0.40699,2457.4,2457.3,2.96395836]
[1728851656794,3.61479,2457.4,2457.3,2.96395836]
[1728851659200,0.40698,2457.5,2457.3,3.37096836]
[1728851659402,0.40698,2457.5,2457.4,1.32]
[1728851660099,0.40698,2457.5,2457.4,1.7415]
[1728851661603,8.61468289,2457.7,2457.4,1.7415]
[1728851661898,0.40697,2457.5,2457.4,1.7415]
[1728851667702,0.40697,2457.5,2457.4,2.80724469]
[1728851667905,0.40697,2457.5,2457.4,1.7415]
[1728851668306,0.40697,2457.5,2457.4,2.80724469]
[1728851670994,0.40697,2457.5,2457.4,1.7415]
[1728851671198,0.40697,2457.5,2457.4,2.80724469]
[1728851671800,0.40697,2457.5,2457.4,1.7415]
[1728851672203,0.82967,2457.5,2457.4,1.7415]
[1728851674900,0.82967,2457.5,2457.4,2.1386]
[1728851680300,0.82967,2457.5,2457.3,0.4223]
[1728851680301,0.40699,2457.4,2457.3,0.4223]
[1728851680506,1.7427,2457.5,2457.2,0.4112]
[1728851680710,4.93481,2457.3,2457.2,0.4112]
[1728851680911,4.93481,2457.3,2457.1,1.44944469]
[1728851680912,0.40702,2457.2,2457.1,0.3837]
[1728851681206,0.40704,2457.1,2457.0,2.79694469]
[1728851682609,0.40704,2457.1,2457.0,1.7312]
[1728851688314,0.40704,2457.1,2457.0,0.4112]
[1728851688515,1.32,2457.1,2457.0,1.32]
[1728851688820,6.1801,2457.1,2456.9,2.1046]
[1728851689012,2.1105,2457.1,2456.9,2.1046]
[1728851689207,1.72706,2457.0,2456.9,0.4009]
[1728851689424,0.40707,2456.9,2456.8,0.41]
[1728851689623,0.82177,2456.9,2456.8,1.73]
[1728851698620,0.82177,2456.9,2456.8,0.41]
[1728851698824,2.14177,2456.9,2456.8,0.41]
[1728851700320,0.40709,2456.8,2456.7,0.8084]
[1728851700524,0.40716,2456.4,2456.3,2.38574469]
[1728851700730,0.40716,2456.4,2456.3,1.7065]
[1728851707424,0.40716,2456.4,2456.3,2.11367]
[1728851709926,3.61496,2456.5,2456.4,0.40716]
[1728851710134,3.61496,2456.5,2456.4,1.32]
[1728851710532,3.61496,2456.5,2456.4,1.72716]
[1728851712035,0.40716,2456.5,2456.4,1.72716]
[1728851712338,3.61496,2456.5,2456.4,1.72716]
[1728851714530,3.61496,2456.5,2456.4,1.32]
[1728851715734,0.40716,2456.5,2456.4,1.32]
[1728851716039,3.61496,2456.5,2456.4,1.32]
[1728851717238,3.61496,2456.5,2456.4,1.72716]
[1728851718140,0.40716,2456.5,2456.4,1.72716]
[1728851718440,3.61496,2456.5,2456.4,1.72716]
[1728851722553,0.40716,2456.5,2456.4,1.72716]
[1728851723451,3.61496,2456.5,2456.4,1.72716]
[1728851723653,0.7717,2456.8,2456.6,0.40711]
[1728851723654,3.2078,2456.8,2456.6,0.40711]
[1728851723852,3.2078,2456.8,2456.6,1.32]
[1728851723853,4.5278,2456.8,2456.6,1.32]
[1728851724161,3.61489,2456.8,2456.7,0.3952]
[1728851725660,4.93489,2456.8,2456.7,0.3952]
[1728851726553,1.72709,2456.8,2456.7,0.3952]
[1728851730363,1.72709,2456.8,2456.5,3.20877469]
[1728851730364,0.40712,2456.7,2456.5,3.20877469]
[1728851730559,0.79772,2456.7,2456.5,3.59307469]
[1728851730760,4.93492,2456.6,2456.5,1.06574469]
[1728851731056,0.40716,2456.4,2456.3,0.379]
[1728851731263,0.40717,2456.3,2456.1,1.06574469]
[1728851731457,3.61499,2456.2,2456.1,1.06574469]
[1728851731857,4.93499,2456.2,2456.1,1.06574469]
[1728851737162,4.5278,2456.2,2456.0,1.86044469]
[1728851737364,0.40721,2456.1,2456.0,0.7947]
[1728851737667,0.40721,2456.1,2456.0,2.1147]
[1728851740271,3.61501,2456.1,2456.0,2.1147]
[1728851743261,3.61501,2456.1,2455.9,2.78524469]
[1728851743262,3.2078,2456.1,2455.9,2.78524469]
[1728851743463,1.72722,2456.0,2455.9,0.3995]
[1728851743662,2.13172,2456.0,2455.9,0.3995]
[1728851745472,0.40724,2455.9,2455.8,0.379]
[1728851745663,0.40726,2455.8,2455.7,0.8095]
[1728851745977,1.72726,2455.8,2455.7,0.8095]
[1728851748267,1.32,2455.8,2455.6,7.74746057]
[1728851748573,0.40729,2455.6,2455.5,1.32]
[1728851750772,4.5278,2455.8,2455.5,1.32]
[1728851750971,1.01808,2456.0,2455.4,0.8046]
[1728851750972,0.40725,2455.9,2455.7,1.72727]
[1728851751174,0.40725,2455.9,2455.8,1.2158]
[1728851751372,0.40725,2455.9,2455.8,2.5358]
[1728851751572,3.61502,2456.1,2455.9,0.40724]
[1728851751877,0.40722,2456.1,2455.9,1.32]
[1728851752069,1.72722,2456.1,2455.9,1.32]
[1728851752270,1.32,2456.1,2455.9,1.32]
[1728851752474,0.40722,2456.0,2455.9,1.32]
[1728851754773,1.32,2456.1,2455.9,1.32]
[1728851754978,0.40721,2456.1,2455.9,1.72723]
[1728851755776,4.5278,2456.2,2456.0,0.40722]
[1728851755777,4.935,2456.2,2456.0,0.40722]
[1728851756172,4.935,2456.2,2456.1,0.383]
[1728851762078,1.7272,2456.2,2456.1,0.383]
[1728851763481,4.93498,2456.3,2456.1,2.1102]
[1728851763693,4.93497,2456.3,2456.2,0.8174]
[1728851766888,4.93497,2456.3,2456.2,0.408]
[1728851767281,4.5278,2456.3,2456.1,0.383]
[1728851767480,2.12859,2456.2,2456.1,0.383]
[1728851767981,0.40721,2456.1,2456.0,0.7778]
[1728851768181,1.72721,2456.1,2456.0,0.7778]
[1728851768981,0.40724,2455.9,2455.8,1.742]
[1728851769191,0.40724,2455.9,2455.8,2.5193]
[1728851769386,0.40724,2455.9,2455.8,2.1325]
[1728851769583,0.80134,2455.9,2455.8,0.8125]
[1728851769781,2.12134,2455.9,2455.8,0.8125]
[1728851769984,1.7141,2455.9,2455.6,2.38689671]
[1728851770185,1.72727,2455.7,2455.6,1.49159671]
[1728851770485,1.72727,2455.7,2455.5,0.7773]
[1728851770486,0.40729,2455.6,2455.5,0.7773]
[1728851770791,0.40729,2455.6,2455.5,2.522]
[1728851770997,0.40729,2455.6,2455.5,2.92931]
[1728851771199,3.2078,2455.7,2455.5,2.522]
[1728851771395,3.61508,2455.7,2455.6,1.32]
[1728851775299,3.61508,2455.7,2455.6,2.38689671]
[1728851775986,3.61508,2455.7,2455.6,2.79418671]
[1728851776993,3.2078,2455.7,2455.6,2.79418671]
[1728851777197,0.40726,2455.8,2455.7,0.40727]
[1728851777496,0.40726,2455.8,2455.7,1.06731518]
[1728851778492,0.40726,2455.8,2455.7,1.47458518]
[1728851779003,0.40726,2455.8,2455.7,1.06731518]
[1728851779385,0.40726,2455.8,2455.6,2.79459518]
[1728851779893,0.40726,2455.8,2455.7,1.06731518]
[1728851780996,1.72726,2455.8,2455.7,1.06731518]
[1728851782401,1.72726,2455.8,2455.7,1.22150908]
[1728851782697,1.72726,2455.8,2455.7,1.06731518]
[1728851783195,1.72726,2455.8,2455.7,1.22150323]
[1728851784201,1.72726,2455.8,2455.7,2.63312749]
[1728851784413,1.72726,2455.8,2455.7,2.63313421]
[1728851784887,1.72726,2455.8,2455.7,1.22150995]
[1728851787501,1.32,2455.8,2455.7,1.62877995]
[1728851787797,0.40724,2455.9,2455.7,3.04047913]
[1728851787993,1.72724,2455.9,2455.7,1.4748534]
[1728851788195,1.72724,2455.9,2455.8,0.4085]
[1728851789299,1.72724,2455.9,2455.8,1.4760934]
[1728851789904,1.72724,2455.9,2455.8,1.8833534]
[1728851790305,1.32,2455.9,2455.8,1.8833534]
[1728851790898,1.72724,2455.9,2455.8,1.8833534]
[1728851792404,1.32,2455.9,2455.8,1.8833534]
[1728851795106,1.72724,2455.9,2455.8,1.8833534]
[1728851795408,1.32,2455.9,2455.8,1.8833534]
[1728851795703,3.2078,2456.1,2455.8,2.7960934]
[1728851795906,0.3963,2456.3,2456.0,1.32]
[1728851796101,1.72719,2456.2,2456.1,1.61521676]
[1728851796908,1.32,2456.2,2456.1,1.61521676]
[1728851797095,1.32,2456.2,2456.1,2.02242676]
[1728851798909,1.32,2456.2,2456.1,3.34242676]
[1728851800103,1.32,2456.2,2456.1,3.1882034]
[1728851800811,4.5278,2456.4,2456.1,3.91555373]
[1728851801011,1.32,2456.3,2456.2,1.47455663]
[1728851801212,1.72717,2456.3,2456.2,1.47455663]
[1728851801409,1.72717,2456.3,2456.2,1.06736663]
[1728851801710,1.32,2456.3,2456.2,1.06736663]
[1728851802008,1.32,2456.3,2456.2,1.47455663]
[1728851802210,1.72717,2456.3,2456.2,1.47455663]
[1728851803899,1.72717,2456.3,2456.2,1.06736663]
[1728851804304,1.72717,2456.3,2456.2,1.47455663]
[1728851804713,1.32,2456.3,2456.2,1.47455663]
[1728851805019,0.40715,2456.5,2456.4,0.40715]
[1728851805313,4.2256,2456.7,2456.5,0.40713]
[1728851805314,1.72714,2456.6,2456.5,0.40713]
[1728851805813,0.40714,2456.5,2456.4,1.72715]
[1728851806308,0.40714,2456.5,2456.4,1.32]
[1728851806510,1.72714,2456.5,2456.4,1.32]
[1728851806708,1.72714,2456.5,2456.4,1.72716]
[1728851806914,1.32,2456.5,2456.4,1.72716]
[1728851807311,1.72714,2456.5,2456.4,1.72716]
[1728851811518,1.72714,2456.5,2456.3,2.52646]
[1728851811709,1.72716,2456.4,2456.2,1.06736663]
[1728851812020,1.72716,2456.4,2456.1,1.47456663]
[1728851812021,0.40719,2456.2,2456.1,1.47456663]
[1728851812223,0.40719,2456.2,2456.1,2.88389129]
[1728851812515,0.40719,2456.2,2456.1,1.47456663]
[1728851812713,1.72719,2456.3,2456.2,0.40719]
[1728851813020,0.40719,2456.3,2456.2,1.72719]
[1728851820428,0.40719,2456.3,2456.2,0.40719]
[1728851824736,1.7255,2456.4,2456.1,2.38736663]
[1728851824937,0.40717,2456.3,2456.2,0.80128]
[1728851825136,1.72717,2456.3,2456.2,0.80128]
[1728851829242,1.72717,2456.3,2456.2,1.86864663]
[1728851829643,1.72717,2456.3,2456.2,0.80128]
[1728851830242,1.72717,2456.3,2456.2,1.86864663]
[1728851831744,1.7255,2456.4,2456.2,3.18864663]
[1728851831949,2.13267,2456.4,2456.3,0.80047]
[1728851832141,2.13267,2456.4,2456.3,1.19307]
[1728851832542,3.2078,2456.5,2456.3,0.7859]
[1728851832848,0.40711,2456.8,2456.5,0.40712]
[1728851833047,2.13481,2456.8,2456.6,1.47337707]
[1728851833247,2.13481,2456.8,2456.6,1.86537707]
[1728851833851,1.7277,2456.8,2456.7,0.40711]
[1728851834946,1.7277,2456.8,2456.7,1.72711]
[1728851836446,0.4077,2456.8,2456.7,1.72711]
[1728851836848,2.0988,2457.0,2456.9,0.40707]
[1728851837069,2.5138,2457.0,2456.9,1.72707]
[1728851837249,2.1227,2457.0,2456.9,1.72707]
[1728851841446,1.735,2457.0,2456.9,1.72707]
[1728851841751,3.2078,2457.1,2457.0,0.40706]
[1728851842250,3.2078,2457.1,2457.0,2.13696]
[1728851843749,2.539,2457.4,2457.3,0.40701]
[1728851843750,0.3938,2457.4,2457.3,0.40701]
[1728851844352,1.7138,2457.4,2457.3,0.40701]
[1728851845754,1.7138,2457.4,2457.3,0.81951]
[1728851845950,3.2078,2457.5,2457.3,1.7325]
[1728851846153,0.7862,2457.6,2457.4,1.32]
[1728851846360,2.51317,2457.6,2457.4,1.72699]
[1728851847462,2.51317,2457.6,2457.4,1.72698]
[1728851848061,1.19317,2457.6,2457.4,1.72698]
[1728851848272,1.7122,2457.6,2457.5,1.72697]
[1728851848565,0.3922,2457.6,2457.5,1.72697]
[1728851848865,1.72695,2457.7,2457.6,0.40696]
[1728851848866,1.32,2457.7,2457.6,0.40696]
[1728851849161,5.32834,2457.8,2457.6,2.54336]
[1728851849557,5.32834,2457.8,2457.7,0.3843]
[1728851853565,5.32834,2457.8,2457.6,0.8164]
[1728851853566,0.40694,2457.7,2457.6,0.8164]
[1728851853767,1.72694,2457.7,2457.6,0.8164]
[1728851855762,0.40698,2457.5,2457.3,0.407]
[1728851855966,1.32,2457.4,2457.3,1.727]
[1728851856176,2.14789,2457.4,2457.3,1.32]
[1728851857159,2.14789,2457.4,2457.3,1.72701]
[1728851859065,0.40701,2457.3,2457.2,1.63461]
[1728851859369,1.72701,2457.3,2457.2,1.2276]
[1728851864671,1.72701,2457.3,2457.2,1.63462]
[1728851865473,1.72701,2457.3,2457.2,1.2276]
[1728851865674,1.72701,2457.3,2457.2,1.63462]
[1728851866269,1.72701,2457.3,2457.2,1.2276]
[1728851866473,1.72701,2457.3,2457.2,1.63462]
[1728851872072,0.40701,2457.3,2457.2,1.63462]
[1728851877178,0.40701,2457.3,2457.2,2.95462]
[1728851877380,0.40701,2457.3,2457.2,4.01985366]
[1728851877878,0.82789,2457.4,2457.3,0.40701]
[1728851878083,0.82789,2457.4,2457.3,1.72701]
[1728851878871,0.40699,2457.4,2457.3,1.72701]
[1728851882785,0.40699,2457.4,2457.3,0.40701]
[1728851883280,0.40699,2457.4,2457.3,1.47224366]
[1728851885377,0.40699,2457.4,2457.3,1.6264327]
[1728851886179,4.93478,2457.5,2457.4,0.40699]
[1728851886381,0.40699,2457.4,2457.3,1.06523366]
[1728851886580,1.72699,2457.4,2457.3,2.63050533]
[1728851886780,1.72699,2457.4,2457.3,1.21945318]
[1728851887490,1.72699,2457.4,2457.3,2.63084086]
[1728851888387,1.72699,2457.4,2457.3,3.26712847]
[1728851889282,1.72699,2457.4,2457.3,3.16345763]
[1728851889479,1.72699,2457.4,2457.3,3.79974536]
[1728851890193,1.72699,2457.4,2457.3,3.79974505]
[1728851892284,1.72699,2457.4,2457.3,3.80061254]
[1728851893181,1.72699,2457.4,2457.3,4.20774867]
[1728851893888,1.72699,2457.4,2457.3,4.20774334]
[1728851894086,3.61478,2457.5,2457.4,0.40699]
[1728851894292,3.61478,2457.5,2457.4,4.20765771]
[1728851894584,3.61478,2457.5,2457.4,3.80066771]
[1728851895985,3.2078,2457.5,2457.4,5.52765771]
[1728851896195,3.2078,2457.5,2457.4,5.77468324]
[1728851896796,3.2078,2457.5,2457.4,5.2460545]
[1728851896986,3.2078,2457.5,2457.4,5.77466183]
[1728851897187,3.2078,2457.5,2457.4,5.62029373]
[1728851897383,3.2078,2457.5,2457.4,4.17678909]
[1728851897888,3.2078,2457.5,2457.4,4.17667609]
[1728851898894,0.40695,2457.7,2457.6,0.40696]
[1728851899092,6.27436655,2457.8,2457.6,1.62951083]
[1728851899288,7.59435655,2457.8,2457.7,0.8091]
[1728851899487,4.93472,2457.8,2457.7,0.8091]
[1728851899799,7.59435655,2457.8,2457.7,0.8091]
[1728851901392,4.93472,2457.8,2457.7,0.8091]
[1728851907197,0.40694,2457.7,2457.6,1.06820498]
[1728851907400,1.72694,2457.7,2457.6,1.06820498]
[1728851910903,1.72694,2457.7,2457.5,3.19307498]
[1728851911904,0.40696,2457.6,2457.5,3.19307498]
[1728851912093,0.40696,2457.6,2457.5,5.26741535]
[1728851912296,0.40696,2457.6,2457.5,4.75843815]
[1728851913505,1.72695,2457.7,2457.5,4.75843815]
[1728851913698,1.72695,2457.7,2457.5,3.19307498]
[1728851914698,0.40695,2457.7,2457.5,2.78610498]
[1728851914899,0.40695,2457.7,2457.5,3.19306498]
[1728851915098,0.40695,2457.7,2457.6,1.06820498]
[1728851916204,4.93474,2457.8,2457.6,2.79515498]
[1728851916503,4.93474,2457.8,2457.7,0.7967]
[1728851917408,3.61474,2457.8,2457.7,0.7967]
[1728851924301,0.40694,2457.8,2457.7,0.7967]
[1728851924508,3.61474,2457.8,2457.7,0.7967]
[1728851927208,0.40694,2457.7,2457.6,2.38820498]
[1728851931410,0.40694,2457.7,2457.6,2.54244084]
[1728851934005,1.72694,2457.7,2457.6,1.22244084]
[1728851934512,0.40697,2457.5,2457.4,1.06820498]
[1728851934715,0.40699,2457.4,2457.3,1.06820498]
[1728851935020,0.40699,2457.4,2457.3,3.14253798]
[1728851935505,0.40699,2457.4,2457.3,3.26979452]
[1728851936012,0.40699,2457.4,2457.3,4.58979452]
[1728851936413,0.40699,2457.4,2457.3,4.58982502]